fUSD/lending_fUSD_20241117
["ID","MTS","AMOUNT","RATE_DAILY","PERIOD"]
[342438153,1731874238601,-435.90564942,0.0001,2]
[342438154,1731874238611,-1373105.84778732,0.0001,2]
[342438155,1731874238639,-3629.02,0.0001,2]
[342438156,1731874238651,-822.44377048,0.0001,2]
[342438163,1731874240127,-30844.10076116,0.0001,2]
[342438164,1731874240185,-12831.07523905,0.0001,2]
[342438165,1731874240292,-2616.660012,0.0001,2]
[342438166,1731874240304,-3026.64561438,0.0001,2]
[342438167,1731874240318,-10693.00336837,0.0001,2]
[342438168,1731874240330,-619.36,0.0001,2]
[342438169,1731874240341,-589.75685242,0.0001,2]
[342438170,1731874240456,-393.50691572,0.0001,2]
[342438171,1731874240480,-1986.64915,0.0001,2]
[342438172,1731874240491,-800.31683527,0.0001,2]
[342438173,1731874240503,-3876.29732141,0.0001,2]
[342438174,1731874240522,-447.7305626,0.0001,2]
[342438193,1731874243122,-7040.15956811,0.0001,2]
[342438194,1731874243134,-9814.77183635,0.0001,2]
[342438195,1731874243177,-6412.08450509,0.0001,2]
[342438196,1731874243239,-4338.9317912,0.0001,2]
[342438197,1731874243250,-4285.99093074,0.0001,2]
[342438198,1731874243262,-7530.3211607,0.0001,2]
[342438199,1731874243274,-12817.83975,0.0001,2]
[342438200,1731874243285,-37624.3048,0.0001,2]
[342438201,1731874243359,-4579.8,0.0001,2]
[342438202,1731874243371,-536.17384152,0.0001,2]
[342438203,1731874243404,-941.47874512,0.0001,2]
[342438204,1731874243416,-3638.373,0.0001,2]
[342438205,1731874243427,-15312.93888335,0.0001,2]
[342438206,1731874243439,-62946.18736066,0.0001,2]
[342438207,1731874243451,-15492.377535,0.0001,2]
[342438208,1731874243462,-998.387619,0.0001,2]
[342438227,1731874246263,-906210.65052461,0.0001,2]
[342438228,1731874246275,-423.50207265,0.0001,2]
[342438230,1731874246286,-1629.89234308,0.0001,2]
[342438234,1731874246317,-27264.70025348,0.0001,2]
[342438236,1731874246328,-9122.8092,0.0001,2]
[342438242,1731874246374,-369673.91025628,0.0001,2]
[342438244,1731874246386,-90282.05701304,0.0001,2]
[342438245,1731874246397,-2728.25581309,0.0001,2]
[342438246,1731874246481,-542388.11034266,0.0001,2]
[342438250,1731874250572,600.0,8.22e-05,2]
[342438251,1731874252059,900.0,8.22e-05,2]
[342438252,1731874285951,1400.0,8.22e-05,2]
[342438254,1731874890714,1817.54,8.219e-05,2]
[342438255,1731875100508,1000.0,8.782e-05,2]
[342438256,1731875140090,815.0,8.863e-05,2]
[342438257,1731875144592,250.0,8.792e-05,2]
[342438274,1731875414021,250.0,8.732e-05,2]
[342438289,1731875431412,-314.74,9.217e-05,2]
[342438290,1731875431422,-163.14,9.223e-05,2]
[342438291,1731875431431,-163.14,9.231e-05,2]
[342438292,1731875431440,-163.14,9.238e-05,2]
[342438293,1731875431450,-163.14,9.246e-05,2]
[342438294,1731875431459,-163.14,9.254e-05,2]
[342438295,1731875431469,-163.14,9.262e-05,2]
[342438296,1731875431478,-250.0,9.264e-05,2]
[342438297,1731875431487,-5088.7984433,9.269e-05,2]
[342438298,1731875431497,-163.14,9.269e-05,2]
[342438299,1731875431514,-250.64,9.27e-05,2]
[342438300,1731875431524,-300.0,9.27e-05,2]
[342438301,1731875431533,-3799.61037091,9.294e-05,2]
[342438302,1731875431546,-1232.79841512,9.294e-05,2]
[342438303,1731875431561,-56.38965727,9.294e-05,2]
[342438304,1731875431570,-213.09,9.333e-05,2]
[342438305,1731875431582,-176.54,9.409e-05,2]
[342438306,1731875431592,-165.4,9.468e-05,2]
[342438307,1731875431601,-600.0,9.59e-05,2]
[342438308,1731875431611,-900.0,9.59e-05,2]
[342438309,1731875431620,-1400.0,9.59e-05,2]
[342438310,1731875431629,-200.0,9.6e-05,2]
[342438311,1731875431639,-299.99,9.67e-05,2]
[342438312,1731875431648,-1029.0,9.703e-05,2]
[342438313,1731875431658,-1000.0,9.88e-05,2]
[342438314,1731875431671,-150.0,9.899e-05,2]
[342438315,1731875431681,-2441.6983,9.9e-05,2]
[342438316,1731875431690,-267.2594,9.9e-05,2]
[342438317,1731875431699,-20496.7493,9.9e-05,2]
[342438318,1731875431708,-5000.0,9.9e-05,2]
[342438319,1731875431718,-12181.18764709,9.9e-05,2]
[342438320,1731875431727,-8500.0,9.965e-05,2]
[342438321,1731875431737,-502.98459405,9.973e-05,2]
[342438322,1731875431746,-8500.0,9.974e-05,2]
[342438323,1731875431756,-8500.0,9.982e-05,2]
[342438324,1731875431766,-8500.0,9.991e-05,2]
[342438325,1731875431775,-2397.36535582,9.999e-05,2]
[342438326,1731875431784,-985.427,9.999e-05,2]
[342438328,1731875431794,-80083.98176802,9.999e-05,2]
[342438329,1731875431804,-536.0,0.0001,2]
[342438330,1731875431813,-429445.94464036,0.0001,2]
[342438331,1731875431822,-8956.70469971,0.0001,2]
[342438332,1731875431831,-499797.25732324,0.0001,2]
[342438337,1731875431877,-210.896,9.873e-05,2]
[342438339,1731875431887,-90.25782848,0.0001,2]
[342438343,1731875431920,-9086.80723765,0.0001,2]
[342438345,1731875431931,-814.99724662,0.0001,2]
[342438348,1731875431943,-754.73572568,0.0001,2]
[342438351,1731875431966,-300.0,0.0001,2]
[342438355,1731875431990,-3126.57815329,0.0001,2]
[342438628,1731875437374,-2302.93581661,0.0001,2]
[342438630,1731875437436,-150.0,9.873e-05,2]
[342438631,1731875437445,-1066.56,0.0001,2]
[342438632,1731875437457,-17597.35212802,0.0001,2]
[342438633,1731875437551,-3213.75818267,0.0001,2]
[342438634,1731875437566,-8750.94138,0.0001,2]
[342438635,1731875437688,-3121.66586252,0.0001,2]
[342438636,1731875437707,-611.86307641,0.0001,2]
[342438637,1731875437726,-1623.99985,0.0001,2]
[342438638,1731875437737,-902.82192,0.0001,2]
[342438639,1731875437759,-5365105.27521987,0.0001,2]
[342438640,1731875437770,-831.91479998,0.0001,2]
[342438641,1731875437804,-1802.51,0.0001,2]
[342438642,1731875437824,-451.51106,0.0001,2]
[342438796,1731875439349,-260.75799999,0.0001,2]
[342438809,1731875439463,-7881.0787865,0.0001,2]
[342438811,1731875439475,-3952.45144184,0.0001,2]
[342438814,1731875439486,-658.24123019,0.0001,2]
[342438816,1731875439501,-5342.04804275,0.0001,2]
[342438820,1731875439532,-1800.9,0.0001,2]
[342438822,1731875439545,-2714.58456776,0.0001,2]
[342438825,1731875439564,-3264.3,0.0001,2]
[342438827,1731875439576,-297.75698508,0.0001,2]
[342438830,1731875439590,-8919.14442186,0.0001,2]
[342438833,1731875439608,-457.77322854,0.0001,2]
[342438835,1731875439619,-7695.43304997,0.0001,2]
[342438837,1731875439631,-2595.40584699,0.0001,2]
[342438843,1731875439681,-5387.61836724,0.0001,2]
[342438962,1731875442423,-628.0,9.873e-05,2]
[342438963,1731875442434,-8361.31460703,0.0001,2]
[342438964,1731875442518,-1740.2993362,0.0001,2]
[342438965,1731875442530,-5317.18862875,0.0001,2]
[342438966,1731875442544,-12257.5258784,0.0001,2]
[342438967,1731875442556,-9263.04360957,0.0001,2]
[342438968,1731875442601,-1358.82,0.0001,2]
[342438969,1731875442639,-10243.29326984,0.0001,2]
[342438970,1731875442652,-11897.15022199,0.0001,2]
[342438971,1731875442663,-2079.82177527,0.0001,2]
[342438972,1731875442676,-1685.32732396,0.0001,2]
[342438973,1731875442688,-785.50519395,0.0001,2]
[342438974,1731875442699,-7702.0272,0.0001,2]
[342439013,1731875445372,-1111.99798061,9.8e-05,2]
[342439014,1731875445382,-246.84450439,9.873e-05,2]
[342439015,1731875445394,-517.17279638,9.873e-05,2]
[342439016,1731875445444,-435.74283635,9.873e-05,2]
[342439017,1731875445455,-792.23986288,9.873e-05,2]
[342439018,1731875445465,-318.33075381,0.0001,2]
[342439019,1731875445476,-420.96317504,0.0001,2]
[342439020,1731875445487,-541.671,0.0001,2]
[342439021,1731875445499,-227835.24711422,0.0001,2]
[342439022,1731875445514,-1596.80933603,0.0001,2]
[342439023,1731875445550,-2542.30262415,0.0001,2]
[342439024,1731875445564,-753319.96974548,0.0001,2]
[342439082,1731875446487,-1594.44754111,0.0001,2]
[342439083,1731875446499,-1287.78403333,0.0001,2]
[342439084,1731875446515,-664.41312194,0.0001,2]
[342439085,1731875446545,-2832.61010847,0.0001,2]
[342439086,1731875446557,-63696.56173996,0.0001,2]
[342439087,1731875446572,-3024.96159537,0.0001,2]
[342439088,1731875466337,800.0,8.22e-05,2]
[342439089,1731875467168,500.0,8.22e-05,2]
[342439090,1731875507616,1200.0,8.22e-05,2]
[342439095,1731875601936,200.0,8.819e-05,2]
[342439096,1731875727174,-817.34711184,9.045e-05,2]
[342439097,1731875727198,-23900.0,9.045e-05,2]
[342439098,1731875727220,-15154.12,9.157e-05,2]
[342439099,1731875727243,-157.880768,9.368e-05,2]
[342439100,1731875727269,-1500.0,9.382e-05,2]
[342439101,1731875727291,-488.10816376,9.514e-05,2]
[342439102,1731875727314,-800.0,9.59e-05,2]
[342439103,1731875727336,-500.0,9.59e-05,2]
[342439104,1731875727358,-1200.0,9.59e-05,2]
[342439105,1731875727380,-1500.0,9.685e-05,2]
[342439106,1731875727403,-150.0,9.715e-05,2]
[342439107,1731875727425,-150.0,9.722e-05,2]
[342439108,1731875727447,-1500.0,9.726e-05,2]
[342439109,1731875727472,-150.0,9.734e-05,2]
[342439110,1731875727495,-150.0,9.743e-05,2]
[342439111,1731875727527,-150.0,9.749e-05,2]
[342439112,1731875727552,-150.0,9.753e-05,2]
[342439113,1731875727575,-1040.58305264,9.8e-05,2]
[342439114,1731875727601,-150.0,9.816e-05,2]
[342439115,1731875727623,-150.0,9.816e-05,2]
[342439116,1731875727645,-150.0,9.82e-05,2]
[342439117,1731875727671,-150.0,9.827e-05,2]
[342439118,1731875727695,-150.0,9.837e-05,2]
[342439119,1731875727717,-150.0,9.839e-05,2]
[342439120,1731875727747,-183.16009767,9.868e-05,2]
[342439121,1731875727779,-150.0,9.869e-05,2]
[342439122,1731875727804,-150.0,9.873e-05,2]
[342439123,1731875727825,-150.0,9.876e-05,2]
[342439124,1731875727848,-150.0,9.88e-05,2]
[342439125,1731875727871,-150.0,9.88e-05,2]
[342439126,1731875727893,-150.0,9.881e-05,2]
[342439127,1731875727916,-150.0,9.883e-05,2]
[342439128,1731875727942,-150.0,9.892e-05,2]
[342439129,1731875727964,-150.0,9.899e-05,2]
[342439130,1731875727986,-5000.0,9.9e-05,2]
[342439131,1731875728009,-9073.3566,9.9e-05,2]
[342439132,1731875728034,-150.0,9.9e-05,2]
[342439133,1731875728057,-1000.0,9.9e-05,2]
[342439134,1731875728081,-150.0,9.902e-05,2]
[342439135,1731875728104,-150.0,9.907e-05,2]
[342439136,1731875728133,-150.0,9.924e-05,2]
[342439137,1731875728160,-150.0,9.939e-05,2]
[342439138,1731875728185,-150.0,9.942e-05,2]
[342439139,1731875728209,-150.0,9.95e-05,2]
[342439140,1731875728232,-5800.0,9.958e-05,2]
[342439141,1731875728258,-150.0,9.96e-05,2]
[342439142,1731875728283,-5800.0,9.966e-05,2]
[342439143,1731875728309,-276.23302369,9.969e-05,2]
[342439144,1731875728335,-276.23302369,9.969e-05,2]
[342439145,1731875728360,-5800.0,9.975e-05,2]
[342439146,1731875728385,-276.23302369,9.983e-05,2]
[342439147,1731875728413,-5800.0,9.983e-05,2]
[342439148,1731875728441,-150.0,9.988e-05,2]
[342439149,1731875728465,-276.23302369,9.991e-05,2]
[342439150,1731875728489,-5800.0,9.992e-05,2]
[342439151,1731875728516,-276.23302369,9.994e-05,2]
[342439152,1731875728540,-525.0,0.0001,2]
[342439153,1731875728566,-386536.15585282,0.0001,2]
[342439154,1731875728589,-8061.03422974,0.0001,2]
[342439155,1731875728626,-12906668.68036429,0.0001,2]
[342439156,1731875728651,-1000.0,0.0001,2]
[342439157,1731875728675,-1000.0,0.0001,2]
[342439158,1731875728703,-233386.31949121,0.0001,2]
[342439159,1731875728731,-18883076.26271657,0.0001,2]
[342439160,1731875728757,-1000.0,0.0001,2]
[342439161,1731875728782,-205.0,0.0001,2]
[342439162,1731875728805,-205.0,0.0001,2]
[342439163,1731875728830,-205.0,0.0001,2]
[342439164,1731875728853,-205.0,0.0001,2]
[342439165,1731875728876,-205.0,0.0001,2]
[342439166,1731875728900,-205.0,0.0001,2]
[342439167,1731875728923,-205.0,0.0001,2]
[342439168,1731875728946,-205.0,0.0001,2]
[342439169,1731875728968,-7998.54448121,0.0001,2]
[342439170,1731875728991,-1000.0,0.0001,2]
[342439171,1731875729015,-1000.0,0.0001,2]
[342439172,1731875729037,-265127.67317175,0.0001,2]
[342439173,1731875729059,-150.0,0.0001,2]
[342439174,1731875729088,-15867237.27537603,0.0001,2]
[342439175,1731875729111,-203.0,0.0001,2]
[342439176,1731875729134,-203.0,0.0001,2]
[342439177,1731875729157,-203.0,0.0001,2]
[342439178,1731875729180,-203.0,0.0001,2]
[342439179,1731875729202,-203.0,0.0001,2]
[342439180,1731875729225,-1000.0,0.0001,2]
[342439181,1731875729247,-15974.0,0.0001,2]
[342439182,1731875729278,-16839080.56746083,0.0001,2]
[342439183,1731875729300,-3464.98467772,0.0001,2]
[342439184,1731875729322,-150.0,0.0001,2]
[342439185,1731875729345,-204.0,0.0001,2]
[342439186,1731875729593,-204.0,0.0001,2]
[342439187,1731875729617,-204.0,0.0001,2]
[342439188,1731875729639,-204.0,0.0001,2]
[342439189,1731875729660,-204.0,0.0001,2]
[342439190,1731875729686,-204.0,0.0001,2]
[342439191,1731875729708,-204.0,0.0001,2]
[342439192,1731875729731,-204.0,0.0001,2]
[342439193,1731875729756,-151.0,0.0001,2]
[342439194,1731875729777,-1502.62,0.0001,2]
[342439195,1731875729800,-250.0,0.0001,2]
[342439196,1731875729821,-250.0,0.0001,2]
[342439197,1731875729843,-250.0,0.0001,2]
[342439198,1731875729865,-250.0,0.0001,2]
[342439199,1731875729887,-250.0,0.0001,2]
[342439200,1731875729908,-250.0,0.0001,2]
[342439201,1731875729931,-250.0,0.0001,2]
[342439202,1731875729955,-250.0,0.0001,2]
[342439203,1731875729977,-250.0,0.0001,2]
[342439204,1731875729999,-250.0,0.0001,2]
[342439205,1731875730025,-250.0,0.0001,2]
[342439206,1731875730047,-250.0,0.0001,2]
[342439207,1731875730069,-250.0,0.0001,2]
[342439208,1731875730090,-250.0,0.0001,2]
[342439209,1731875730112,-250.0,0.0001,2]
[342439210,1731875730134,-250.0,0.0001,2]
[342439211,1731875730156,-250.0,0.0001,2]
[342439212,1731875730177,-250.0,0.0001,2]
[342439213,1731875730199,-250.0,0.0001,2]
[342439214,1731875730220,-250.0,0.0001,2]
[342439215,1731875730242,-250.0,0.0001,2]
[342439216,1731875730266,-250.0,0.0001,2]
[342439217,1731875730287,-250.0,0.0001,2]
[342439218,1731875730310,-476.5,0.0001,2]
[342439219,1731875730332,-249.600577,0.0001,2]
[342439220,1731875730354,-249.600577,0.0001,2]
[342439221,1731875730377,-249.600577,0.0001,2]
[342439222,1731875730399,-249.600577,0.0001,2]
[342439223,1731875730422,-322.0,0.0001,2]
[342439224,1731875730446,-5800.0,0.0001,2]
[342439225,1731875730472,-165.83988487,0.0001,2]
[342439226,1731875730494,-3266.50653527,0.0001,2]
[342439227,1731875730517,-2931.99170828,0.0001,2]
[342439228,1731875730540,-435.90564942,0.0001,2]
[342439229,1731875730563,-1000.0,0.0001,2]
[342439230,1731875730584,-1000.0,0.0001,2]
[342439231,1731875730609,-1000.0,0.0001,2]
[342439232,1731875730632,-1000.0,0.0001,2]
[342439233,1731875730656,-1000.0,0.0001,2]
[342439234,1731875730679,-1000.0,0.0001,2]
[342439235,1731875730700,-1000.0,0.0001,2]
[342439236,1731875730721,-1000.0,0.0001,2]
[342439237,1731875730742,-1000.0,0.0001,2]
[342439238,1731875730773,-1000.0,0.0001,2]
[342439239,1731875730793,-1000.0,0.0001,2]
[342439240,1731875730814,-1000.0,0.0001,2]
[342439241,1731875730835,-1000.0,0.0001,2]
[342439242,1731875730856,-1000.0,0.0001,2]
[342439243,1731875730878,-1000.0,0.0001,2]
[342439244,1731875730900,-1000.0,0.0001,2]
[342439245,1731875730921,-1000.0,0.0001,2]
[342439246,1731875730943,-2000.0,0.0001,2]
[342439247,1731875730964,-200.0,0.0001,2]
[342439248,1731875730985,-1000.0,0.0001,2]
[342439249,1731875731010,-1006.0,0.0001,2]
[342439250,1731875731031,-5288.0,0.0001,2]
[342439251,1731875731052,-1004.0,0.0001,2]
[342439252,1731875731073,-8500.0,0.0001,2]
[342439253,1731875731094,-2000.0,0.0001,2]
[342439254,1731875731115,-200.0,0.0001,2]
[342439255,1731875731136,-19429.58432513,0.0001,2]
[342439256,1731875731158,-1000.0,0.0001,2]
[342439257,1731875731179,-1000.0,0.0001,2]
[342439258,1731875731200,-1000.0,0.0001,2]
[342439259,1731875731220,-1000.0,0.0001,2]
[342439260,1731875731241,-1000.0,0.0001,2]
[342439261,1731875731265,-1000.0,0.0001,2]
[342439262,1731875731287,-1000.0,0.0001,2]
[342439263,1731875731308,-1000.0,0.0001,2]
[342439264,1731875731329,-1000.0,0.0001,2]
[342439265,1731875731356,-16365041.98990789,0.0001,2]
[342439266,1731875731377,-1000.0,0.0001,2]
[342439267,1731875731399,-1000.0,0.0001,2]
[342439268,1731875731419,-1000.0,0.0001,2]
[342439269,1731875731440,-1000.0,0.0001,2]
[342439270,1731875731460,-1000.0,0.0001,2]
[342439271,1731875731481,-1000.0,0.0001,2]
[342439272,1731875731502,-1000.0,0.0001,2]
[342439273,1731875731527,-1000.0,0.0001,2]
[342439274,1731875731548,-1000.0,0.0001,2]
[342439275,1731875731569,-1000.0,0.0001,2]
[342439276,1731875731591,-1000.0,0.0001,2]
[342439277,1731875731617,-150.0,0.0001,2]
[342439278,1731875731639,-150.0,0.0001,2]
[342439279,1731875731660,-150.0,0.0001,2]
[342439280,1731875731685,-150.0,0.0001,2]
[342439281,1731875731707,-240.45006259,0.0001,2]
[342439282,1731875731730,-250.0,0.0001,2]
[342439283,1731875731751,-1000.0,0.0001,2]
[342439284,1731875731775,-1000.0,0.0001,2]
[342439285,1731875731795,-1000.0,0.0001,2]
[342439286,1731875731816,-1000.0,0.0001,2]
[342439287,1731875731837,-1000.0,0.0001,2]
[342439288,1731875731858,-1000.0,0.0001,2]
[342439289,1731875731881,-1000.0,0.0001,2]
[342439290,1731875731901,-1000.0,0.0001,2]
[342439291,1731875731923,-1000.0,0.0001,2]
[342439292,1731875731944,-1000.0,0.0001,2]
[342439293,1731875731966,-1000.0,0.0001,2]
[342439294,1731875731988,-1000.0,0.0001,2]
[342439295,1731875732196,-1000.0,0.0001,2]
[342439296,1731875732218,-1000.0,0.0001,2]
[342439297,1731875732240,-1000.0,0.0001,2]
[342439298,1731875732265,-1000.0,0.0001,2]
[342439299,1731875732287,-1000.0,0.0001,2]
[342439300,1731875732308,-1000.0,0.0001,2]
[342439301,1731875732331,-1000.0,0.0001,2]
[342439302,1731875732353,-2000.0,0.0001,2]
[342439303,1731875732376,-575.221695,0.0001,2]
[342439304,1731875732398,-575.221695,0.0001,2]
[342439305,1731875732420,-200.0,0.0001,2]
[342439306,1731875732447,-1000.0,0.0001,2]
[342439307,1731875732471,-1000.0,0.0001,2]
[342439308,1731875732494,-1000.0,0.0001,2]
[342439309,1731875732518,-1000.0,0.0001,2]
[342439310,1731875732542,-1000.0,0.0001,2]
[342439311,1731875732565,-1000.0,0.0001,2]
[342439312,1731875732590,-1000.0,0.0001,2]
[342439313,1731875732618,-1000.0,0.0001,2]
[342439314,1731875732642,-4883.10055573,0.0001,2]
[342439315,1731875732667,-4883.10055573,0.0001,2]
[342439316,1731875732695,-4883.10055573,0.0001,2]
[342439317,1731875732718,-1000.0,0.0001,2]
[342439318,1731875732741,-1036.0,0.0001,2]
[342439319,1731875732768,-5800.0,0.0001,2]
[342439320,1731875732791,-1428.09804863,0.0001,2]
[342439321,1731875732812,-3000.0,0.0001,2]
[342439322,1731875732838,-150.0,0.0001,2]
[342439323,1731875732862,-150.0,0.0001,2]
[342439324,1731875732885,-150.0,0.0001,2]
[342439325,1731875732909,-150.0,0.0001,2]
[342439326,1731875732932,-271.01358043,0.0001,2]
[342439327,1731875732956,-150.0,0.0001,2]
[342439328,1731875732978,-150.80970087,0.0001,2]
[342439329,1731875732999,-500.0,0.0001,2]
[342439330,1731875733025,-500.0,0.0001,2]
[342439331,1731875733049,-500.0,0.0001,2]
[342439332,1731875733074,-500.0,0.0001,2]
[342439333,1731875733099,-500.0,0.0001,2]
[342439334,1731875733122,-500.0,0.0001,2]
[342439335,1731875733147,-500.0,0.0001,2]
[342439336,1731875733172,-646.1806526,0.0001,2]
[342439337,1731875733197,-500.0,0.0001,2]
[342439338,1731875733222,-603.09163774,0.0001,2]
[342439339,1731875733246,-160.97683927,0.0001,2]
[342439340,1731875733275,-150.0,0.0001,2]
[342439341,1731875733298,-150.0,0.0001,2]
[342439342,1731875733323,-166.27005951,0.0001,2]
[342439343,1731875733348,-150.0,0.0001,2]
[342439344,1731875733371,-257.38557087,0.0001,2]
[342439345,1731875733395,-1521.0,0.0001,2]
[342439346,1731875733417,-1521.0,0.0001,2]
[342439347,1731875733440,-1521.0,0.0001,2]
[342439348,1731875733463,-1521.0,0.0001,2]
[342439349,1731875733486,-1521.0,0.0001,2]
[342439350,1731875733513,-1521.0,0.0001,2]
[342439351,1731875733537,-1521.0,0.0001,2]
[342439352,1731875733560,-1521.0,0.0001,2]
[342439353,1731875733587,-1521.0,0.0001,2]
[342439354,1731875733615,-1521.0,0.0001,2]
[342439355,1731875733642,-1521.0,0.0001,2]
[342439356,1731875733666,-1521.0,0.0001,2]
[342439357,1731875733693,-1521.0,0.0001,2]
[342439358,1731875733716,-1521.0,0.0001,2]
[342439359,1731875733741,-1521.0,0.0001,2]
[342439360,1731875733770,-1521.0,0.0001,2]
[342439361,1731875733794,-1521.0,0.0001,2]
[342439362,1731875733817,-1521.0,0.0001,2]
[342439363,1731875733842,-1521.0,0.0001,2]
[342439364,1731875733866,-1533.26602534,0.0001,2]
[342439365,1731875733891,-150.0,0.0001,2]
[342439366,1731875733914,-212.31269971,0.0001,2]
[342439367,1731875733938,-150.0,0.0001,2]
[342439368,1731875733962,-150.0,0.0001,2]
[342439369,1731875733987,-150.0,0.0001,2]
[342439370,1731875734029,-150.0,0.0001,2]
[342439371,1731875734053,-9157.8232501,0.0001,2]
[342439372,1731875734078,-26347.5138887,0.0001,2]
[342439373,1731875734104,-2833.59531739,0.0001,2]
[342439374,1731875734129,-176.99721658,0.0001,2]
[342439375,1731875734153,-243.3201911,0.0001,2]
[342439376,1731875734178,-150.0,0.0001,2]
[342439377,1731875734202,-150.0,0.0001,2]
[342439378,1731875734226,-150.0,0.0001,2]
[342439379,1731875734249,-220.88628934,0.0001,2]
[342439380,1731875734275,-500.0,0.0001,2]
[342439381,1731875734299,-500.0,0.0001,2]
[342439382,1731875734323,-500.0,0.0001,2]
[342439383,1731875734347,-500.0,0.0001,2]
[342439384,1731875734371,-500.0,0.0001,2]
[342439385,1731875734394,-500.0,0.0001,2]
[342439386,1731875734418,-581.32205712,0.0001,2]
[342439387,1731875734441,-500.0,0.0001,2]
[342439388,1731875734465,-500.0,0.0001,2]
[342439389,1731875734488,-1000.0,0.0001,2]
[342439390,1731875734517,-500.0,0.0001,2]
[342439391,1731875734541,-500.0,0.0001,2]
[342439392,1731875734566,-500.0,0.0001,2]
[342439393,1731875734595,-715.7834403,0.0001,2]
[342439394,1731875734624,-500.0,0.0001,2]
[342439395,1731875734650,-500.0,0.0001,2]
[342439396,1731875734678,-688.02933046,0.0001,2]
[342439397,1731875734703,-150.0,0.0001,2]
[342439398,1731875734728,-264.63564315,0.0001,2]
[342439399,1731875735065,-1000.0,0.0001,2]
[342439400,1731875735089,-2143.95682897,0.0001,2]
[342439401,1731875735113,-176589.34018545,0.0001,2]
[342439402,1731875735134,-10493.42523255,0.0001,2]
[342439403,1731875735157,-17664.59920767,0.0001,2]
[342439404,1731875735180,-2041.30045608,0.0001,2]
[342439405,1731875735202,-2000.0,0.0001,2]
[342439406,1731875735225,-200.0,0.0001,2]
[342439407,1731875735247,-777.98207336,0.0001,2]
[342439408,1731875735272,-500.0,0.0001,2]
[342439409,1731875735294,-165.73,0.0001,2]
[342439410,1731875735316,-500.0,0.0001,2]
[342439411,1731875735338,-500.0,0.0001,2]
[342439412,1731875735361,-500.0,0.0001,2]
[342439413,1731875735382,-500.0,0.0001,2]
[342439414,1731875735404,-992.1247023,0.0001,2]
[342439415,1731875735426,-150.0,0.0001,2]
[342439416,1731875735456,-600.0,0.0001,2]
[342439417,1731875735479,-500.0,0.0001,2]
[342439418,1731875735502,-500.0,0.0001,2]
[342439419,1731875735526,-500.0,0.0001,2]
[342439420,1731875735548,-500.0,0.0001,2]
[342439421,1731875735570,-500.0,0.0001,2]
[342439422,1731875735592,-500.0,0.0001,2]
[342439423,1731875735620,-500.0,0.0001,2]
[342439424,1731875735643,-842.88165137,0.0001,2]
[342439425,1731875735664,-150.0,0.0001,2]
[342439426,1731875735687,-222.0,0.0001009,2]
[342439427,1731875735709,-222.0,0.00010094,2]
[342439428,1731875735731,-222.0,0.00010094,2]
[342439429,1731875735753,-288.0,0.000101,2]
[342439430,1731875735777,-2000.0,0.000101,2]
[342439431,1731875735799,-200.0,0.000101,2]
[342439432,1731875735822,-2000.0,0.000101,2]
[342439433,1731875735845,-200.0,0.000101,2]